Cogmind - Beta 15 @@@ ROGUE MODE // 2025.05.29 @ 14:13:13 Player: the Result: Destroyed by YR-J4U(R) with Subdweller Shrapnel Launcher Performance ------------- Evolutions (0) 0 Regions Visited (3) 600 Robots Destroyed (34) 170 Value Destroyed (482) 482 Prototype IDs (17) 340 Alien Tech Used (0) 0 Bonus (-13) -13 TOTAL SCORE: 1579 Bonus ------- Friendly Fire -13 Cogmind --------- Core Integrity 0/250 Matter 218/300 Energy 184/200 System Corruption 2% Temperature Cool (0) Movement Treading (160) Location -10/Subcaves Parts ------- > --- POWER (1) -------- Subdweller Power Source > --- PROPULSION (2) --- Light Treads Light Treads > --- UTILITY (2) ------ Large Storage Unit Medium Armor Plating > --- WEAPON (2) ------- Subdweller Laser Grenade Launcher > --- INVENTORY (15) --- Meta Core Light Treads Light Treads Light Treads Light Treads Disposable Heat Sink Disposable Heat Sink Medium Armor Plating Medium Armor Plating Hacking Suite Medium Laser Medium Laser Medium Laser Medium Laser Makeshift Hammer Peak State ------------ > --- POWER ------------ Subdweller Power Source > --- PROPULSION ------- Light Treads Light Treads > --- UTILITY ---------- Large Storage Unit Medium Armor Plating > --- WEAPON ----------- Medium Laser Subdweller Laser > --- INVENTORY -------- Meta Core Light Treads Light Treads Light Treads Light Treads Disposable Heat Sink Disposable Heat Sink Medium Armor Plating Medium Armor Plating Hacking Suite Medium Laser Medium Laser Medium Laser Medium Laser Grenade Launcher [Rating: 13] Favorites ----------- Power Ion Engine Engine Ion Engine Propulsion Light Treads Treads Light Treads Wheel Wheel Utility Large Storage Unit Device Seismic Detector Storage Large Storage Unit Protection Medium Armor Plating Weapon Medium Laser Energy Gun Medium Laser Launcher Grenade Launcher Special Melee Weapon Datajack Build | -11 -10 -10 -10 ------- Run | Yrd Mat Min Sub Slots Evolved . | . . . . Power . | . . . . Propulsion . | . . . . Utility . | . . . . Weapon . | . . . . Parts Attached 31 | 8 14 2 7 Power 7 | 1 3 . 3 Engine 7 | 1 3 . 3 Core . | . . . . Reactor . | . . . . Propulsion 8 | 3 4 . 1 Treads 5 | 1 3 . 1 Leg . | . . . . Wheel 3 | 2 1 . . Hover . | . . . . Flight . | . . . . Utility 9 | 2 6 . 1 Device 3 | 1 2 . . Storage 4 | 1 3 . . Processor . | . . . . Hackware . | . . . . Protection 2 | . 1 . 1 Artifact . | . . . . Weapon 7 | 2 1 2 2 Energy Gun 4 | 2 . 1 1 Energy Cannon . | . . . . Ballistic Gun . | . . . . Ballistic Cannon . | . . . . Launcher 2 | . . 1 1 Special Weapon . | . . . . Impact Weapon . | . . . . Slashing Weapon . | . . . . Piercing Weapon . | . . . . Special Melee Weapon 1 | . 1 . . Unidentified Prototypes . | . . . . Parts Lost 1 | . . . 1 Power . | . . . . Propulsion . | . . . . Utility 1 | . . . 1 Weapon . | . . . . Highest Loss Streak 1 | . . . 1 To Critical Strikes . | . . . . Average Backups 13 | 4 10 15 14 Power . | . . 1 . Propulsion 3 | 2 3 4 4 Utility 4 | . 3 5 4 Weapon 4 | 1 3 4 5 Tool/Special . | . . . . Unused Backups 22 | 1 6 2 13 Power 1 | . 1 . . Propulsion 7 | 1 2 . 4 Utility 8 | . 1 2 5 Weapon 5 | . 2 . 3 Tool/Special 1 | . . . 1 Average Slot Usage (%) 100 | . 100 100 100 Engine 14 | . 14 14 14 Treads 25 | . 20 28 28 Wheel 2 | . 7 . . Device 10 | . 12 14 3 Storage 14 | . 14 14 14 Protection 3 | . 1 . 10 Energy Gun 26 | . 27 27 23 Launcher 1 | . . . 4 Peak Build Rating 13 | 7 9 9 13 Average Rating 9 | 5 8 9 11 On Entrance 6 | . 7 9 9 Naked Turns . | . . . . Heaviest Build 39 | 15 30 31 39 Greatest Support 40 | 20 40 40 40 Greatest Overweight (x) 2 | 2 1 . . Average Overweight (x) . | . . . . Largest Inventory Capacity 25 | 8 25 15 15 Average Capacity 13 | 7 11 15 15 Most Carried 15 | 8 15 15 15 Average Carried 13 | 4 10 14 14 Final Capacity 15 | 8 15 15 15 Final Carried 15 | 8 15 15 15 Class Distribution -------------------- 100% | Mutant Dominant Class ---------------- Mutant | -10/Materials Mutant | -10/Mines Mutant | -10/Subcaves Resources | -11 -10 -10 -10 ----------- Run | Yrd Mat Min Sub Matter Collected 766 | 280 199 109 178 Remotely . | . . . . Salvage Created 1044 | 202 465 201 176 Parts 63 | 14 26 13 10 Haulers Intercepted 2 | . 2 . . Recyclers Shooed 2 | . 1 1 . Parts Field Recycled . | . . . . Retrieved Matter . | . . . . Parts Self-Destructed . | . . . . Prevented . | . . . . Kills | -11 -10 -10 -10 ------- Run | Yrd Mat Min Sub Combat Hostiles Destroyed 16 | . 8 3 5 Guns 16 | . 8 3 5 Classes Destroyed 10 | 2 5 2 1 Worker 2 | . . 2 . Builder 1 | . . 1 . Tunneler 5 | 5 . . . Hauler 2 | . 2 . . Recycler 5 | 1 2 2 . Operator 1 | . 1 . . Watcher 2 | . 2 . . Swarmer 9 | . 6 3 . Grunt 2 | . 2 . . Subdweller 5 | . . . 5 Best Kill Streak 4 | 4 4 4 2 Combat Bots Only 3 | . 3 3 2 Max Kills in Single Turn 2 | 1 2 1 1 Gunslinging . | . . . . Exploded . | . . . . Melee . | . . . . Uniques/NPCs Destroyed . | . . . . Combat | -11 -10 -10 -10 -------- Run | Yrd Mat Min Sub Hostile Shots Fired 78 | . 41 9 28 Missed 30 | . 15 3 12 Hits 48 | . 26 6 16 Projectile 48 | . 26 6 16 AOE 3 | . . . 3 Critical Strikes 3 | . 1 . 2 Damage Taken 893 | . 266 68 559 Core 252 | . 66 9 177 Absorbed by Shields . | . . . . Core Remaining (%) 100 | 100 . . . Volleys Fired 126 | 15 35 23 53 Largest 2 | 2 2 2 2 Hottest 110 | 100 100 100 110 Shots Fired 219 | 30 70 42 77 Gun 200 | 30 70 35 65 Cannon . | . . . . Launcher 19 | . . 7 12 Special . | . . . . Kinetic . | . . . . Thermal 200 | 30 70 35 65 Explosive 19 | . . 7 12 Electromagnetic . | . . . . Robot Hit Streak 17 | 8 11 9 17 Robot Miss Streak 4 | 1 4 2 2 Penetration Max . | . . . . Secondary Targets 1 | . . . 1 Max Gunslinging Chain 1 | . . . 1 Shots Hit Robots 112 | 23 37 20 32 Core Hits 55 | 7 22 13 13 Critical Kills . | . . . . Critical Parts Destroyed . | . . . . Critical Strikes 12 | 3 2 5 2 Burn 12 | 3 2 5 2 Melee Attacks 1 | . 1 . . Impact . | . . . . Slashing . | . . . . Piercing . | . . . . Sneak Attacks . | . . . . Combat Hostiles . | . . . . Follow-up Attacks . | . . . . Damage Inflicted 1722 | 288 475 278 681 Guns 1453 | 288 475 263 427 Cannons . | . . . . Explosions 254 | . . . 254 Melee . | . . . . Ramming 15 | . . 15 . Kinetic . | . . . . Thermal 1453 | 288 475 263 427 Explosive 254 | . . . 254 Electromagnetic . | . . . . Impact . | . . . . Slashing . | . . . . Piercing . | . . . . Highest Corruption 2 | . 2 2 2 Average Corruption 1 | . 1 2 2 Corruption Purged . | . . . . Corruption Blocked . | . . . . Effects 36 | . 8 16 12 Message Errors 3 | . 1 2 . Matter Fused 6 | . 1 2 3 Heat Flow Errors 10 | . 3 3 4 Energy Discharges 6 | . . 3 3 Data Loss (minor) 7 | . 2 3 2 Data Loss (major) 1 | . 1 . . Misfires 3 | . . 3 . Overload Shots . | . . . . Overflow Damage . | . . . . Projectiles . | . . . . Explosions . | . . . . Melee . | . . . . Knockbacks . | . . . . Impact . | . . . . Kinetic . | . . . . Secondary . | . . . . Self-Inflicted Damage 85 | . . 15 70 Shots 3 | . . 1 2 Rammed 2 | . . 2 . Targets Rammed 2 | . . 2 . Kicked . | . . . . Crushed . | . . . . Highest Temperature 285 | 273 242 264 285 Average Temperature 84 | 93 63 89 134 Received Heat Transfer 364 | . 30 . 334 Effects 2 | 1 1 . . Interference 2 | 1 1 . . Siege Activations . | . . . . Martial Activations . | . . . . Shielding Activations . | . . . . Robots Disrupted . | . . . . Combat Hostiles . | . . . . Robots Corrupted . | . . . . Combat Hostiles . | . . . . Parts Fried . | . . . . Impact Corruptions . | . . . . Robots Melted . | . . . . Combat Hostiles . | . . . . Parts Melted 7 | 2 3 2 . Heat Transferred 4899 | 1073 1554 1147 1125 Parts Sabotaged . | . . . . Parts Stolen . | . . . . Parts Stripped . | . . . . Power Chain Reactions . | . . . . Alert | -11 -10 -10 -10 ------- Run | Yrd Mat Min Sub Maximum Alert Level . | . . . . Low Security (%) 100 | 100 100 100 . Level 1 . | . . . . Level 2 . | . . . . Level 3 . | . . . . Level 4 . | . . . . Level 5 . | . . . . High Security . | . . . . Max Security . | . . . . Peak Influence 66 | 10 66 64 . Initial 3 | . 3 . . Average 9 | 2 15 3 . Influence Increases 470 | 30 327 113 . Destroy 0b10 Robot/C 220 | . 160 60 . Destroy 0b10 Robot/NC 90 | 30 35 25 . Destroy Leader 48 | . 38 10 . Successful Hack 33 | . 33 . . Destroy Structure 19 | . 1 18 . Partial Spotted 15 | . 15 . . Lose Combat Pursuer 45 | . 45 . . Influence Decreases 470 | 25 332 62 51 Entered New Map 29 | . 2 . 27 Time Decay 438 | 25 327 62 24 Purge Threat 3 | . 3 . . Squads Dispatched 1 | . 1 . . Investigation 1 | . 1 . . Extermination . | . . . . Reinforcement . | . . . . Assault . | . . . . Garrison . | . . . . Intercept . | . . . . Searches Triggered . | . . . . Construction Impeded . | . . . . Haulers Reinforced . | . . . . Active Scanning Responses . | . . . . Cargo Convoy Interrupts . | . . . . Stealth | -11 -10 -10 -10 --------- Run | Yrd Mat Min Sub Distress Signals . | . . . . Communications Jammed . | . . . . Distress Signals . | . . . . Times Spotted 29 | . 16 5 8 Peak Tracking Total 4 | . 4 3 2 Tactical Retreats 2 | . 2 . . Traps | -11 -10 -10 -10 ------- Run | Yrd Mat Min Sub Traps Triggered 3 | . 3 . . Indirectly . | . . . . Trap Hack Attempts . | . . . . Triggered . | . . . . Disarmed . | . . . . Reprogrammed . | . . . . Reused . | . . . . Traps Extracted . | . . . . Installed . | . . . . Triggered . | . . . . Machines | -11 -10 -10 -10 ---------- Run | Yrd Mat Min Sub Machines Disabled 1 | . . . 1 Max in Single Turn 1 | . . . 1 Machines Repaired . | . . . . Machines Dismantled . | . . . . Machines Sabotaged . | . . . . Overloaded Fab Kills . | . . . . Hacking | -11 -10 -10 -10 --------- Run | Yrd Mat Min Sub Machines Accessed 9 | . 8 . 1 Terminals 8 | . 8 . . Fabricators . | . . . . Repair Stations . | . . . . Recycling Units . | . . . . Scanalyzers . | . . . . Garrison Access . | . . . . Total Hacks 33 | . 24 . 9 Successful 22 | . 13 . 9 Failed 11 | . 11 . . Catastrophic . | . . . . Database Lockouts . | . . . . Manual 9 | . 9 . . Terminals 24 | . 24 . . Fabricators . | . . . . Repair Stations . | . . . . Recycling Units . | . . . . Scanalyzers . | . . . . Garrison Access . | . . . . Terminal Hacks 17 | . 8 . 9 Record 8 | . . . 8 Part Schematic 1 | . 1 . . Prototype ID Bank 4 | . 4 . . Unreport Threat 1 | . 1 . . Hauler Manifests 1 | . 1 . . Registered Components 1 | . 1 . . Proto ID Catalog 1 | . . . 1 Fabricator Hacks . | . . . . Repair Station Hacks . | . . . . Recycling Unit Hacks . | . . . . Scanalyzer . | . . . . Garrison Access Hacks . | . . . . Unauthorized Hacks 5 | . 5 . . Terminals 5 | . 5 . . Botnet 4 | . 4 . . Operators 1 | . 1 . . Fabricators . | . . . . Repair Stations . | . . . . Recycling Units . | . . . . Scanalyzers . | . . . . Garrison Access . | . . . . Data Cores Recovered 1 | . 1 . . Used 1 | . 1 . . Hacking Detections 8 | . 8 . . Full Trace Events . | . . . . Feedback Events . | . . . . Feedback Blocked . | . . . . Robot Schematics Acquired . | . . . . Robots Built . | . . . . Authchips . | . . . . Time . | . . . . Total Robot Build Rating . | . . . . Part Schematics Acquired 1 | . 1 . . Parts Built . | . . . . Authchips . | . . . . Time . | . . . . Total Part Build Rating . | . . . . Parts Repaired . | . . . . Time . | . . . . Parts Recycled . | . . . . Recycled Matter . | . . . . Retrieved Matter . | . . . . Retrieved Components . | . . . . Parts Scanalyzed . | . . . . Part Schematics Acquired . | . . . . Parts Damaged . | . . . . Bothacking | -11 -10 -10 -10 ------------ Run | Yrd Mat Min Sub Used RIF Installer . | . . . . Robots Hacked . | . . . . Non-combat . | . . . . Combat . | . . . . Robot Hacks Applied . | . . . . Relay Couplers Released . | . . . . Fabnet Peak Effective % . | . . . . Robots Rewired . | . . . . Allies Hacked . | . . . . Hacks Repelled . | . . . . Allies | -11 -10 -10 -10 -------- Run | Yrd Mat Min Sub Total Allies . | . . . . Largest Group . | . . . . Highest-Rated Group . | . . . . Highest-Rated Ally . | . . . . Total Orders . | . . . . Ally Attacks . | . . . . Total Damage . | . . . . Kills . | . . . . Allies Corrupted . | . . . . Allies Melted . | . . . . Intel | -11 -10 -10 -10 ------- Run | Yrd Mat Min Sub Active Infowar (turns) 2525 | 29 1041 1171 284 Seismic 2525 | 29 1041 1171 284 Robot Analysis Total . | . . . . Derelict Logs Recovered 2 | . . 2 . Drone Launches . | . . . . Drone Recoveries . | . . . . Exploration | -11 -10 -10 -10 ------------- Run | Yrd Mat Min Sub Turns Passed 3697 | 117 1321 1171 1088 Spaces Moved 2073 | 59 803 676 535 Core 5 | 5 . . . Treads 1712 | 1 500 676 535 Legs . | . . . . Wheels 356 | 53 303 . . Hover . | . . . . Flight . | . . . . Fastest Speed 50 | 50 80 160 160 Average Speed 146 | 86 131 160 160 Slowest Speed 160 | 160 160 160 160 Overloaded Moves . | . . . . Propulsion Burnouts . | . . . . Robots Hopped . | . . . . Potential Cave-ins . | . . . . Cave-ins Triggered . | . . . . Exploration Rate (%) 56 | 5 88 98 33 Regions Visited 3 Branch Regions 2 Pre-discovered Areas 1 | . . 1 . Known Exits Taken . | . . . . Unknown Exits Taken 3 | 1 1 1 . Scrap Searched 2 | . . 2 . Spaces Dug 14 | . . 10 4 Terrain Destroyed 101 | . . 34 67 Melee . | . . . . Projectile . | . . . . AOE 101 | . . 34 67 Terrain Rammed . | . . . . Walls Destroyed . | . . . . Machines Disabled . | . . . . Actions | -11 -10 -10 -10 --------- Run | Yrd Mat Min Sub Total 2516 | 93 1006 726 691 Wait 209 | 2 110 18 79 Move 2070 | 58 802 675 535 Hop . | . . . . Pick Up 34 | 9 18 2 5 Fast Attach 8 | 7 1 . . Attach 1 | . . . 1 Detach . | . . . . Swap 33 | 1 18 3 11 Drop 32 | 1 21 3 7 Fire 126 | 15 35 23 53 Melee 1 | . 1 . . Ram . | . . . . Kick . | . . . . Crush 2 | . . 2 . Escape Stasis . | . . . . Rewire . | . . . . Trap . | . . . . Miscellaneous . | . . . . Route ------- -11/Scrapyard -10/Materials (discovered 3 exits: [*Mat x2] / *Min) -10/Mines (discovered 3 exits: [*Mat x2] / *Sub) -10/Subcaves History --------- Turn | Location | Event 22 | -11/Scrapyard | Discovered new exit (range 16) 118 | -11/Scrapyard | Entered Materials 312 | -10/Materials | Build established: Mutant 314 | -10/Materials | Discovered new exit (range 8) 463 | -10/Materials | Discovered new exit (range 10) 503 | -10/Materials | Discovered new exit (range 16) 1439 | -10/Materials | Entered Mines 1553 | -10/Mines | Joined a pair of Derelicts in attacking an 0b10 outpost 1764 | -10/Mines | YI-UF0 nonchalantly dropped a Grenade Launcher on the ground 1872 | -10/Mines | Learned Materials emergency access door positions 2002 | -10/Mines | Discovered new exit (range 13) 2043 | -10/Mines | Discovered new exit (range 7) 2530 | -10/Mines | Discovered new exit (range 9) 2610 | -10/Mines | Entered Subcaves 2616 | -10/Subcaves | A swath of the cavern ceiling suddenly collapsed 2895 | -10/Subcaves | Core integrity fell below 50% 3099 | -10/Subcaves | Visited 4L-MR0's lab 3118 | -10/Subcaves | Found Meta Core 3698 | -10/Subcaves | Destroyed by YR-J4U(R) with Subdweller Shrapnel Launcher Last Messages --------------- 03353_ Acquired 40 matter. 03370_ System corrupted: Heat flow error (+126). 03392_ The unstable cave ceiling collapses. 03398_ ZS-PZ2(u) tweaks Twisted Machinery. 03407_ Subatomizers dissect the Sub. Machine Gun, destroying it. 03409_ The unstable cave ceiling collapses. 03410_ ZS-PZ2(u) builds Twisted Machinery. 03413_ System corrupted: Energy discharge (-52). 03413_ ZS-PZ2(u) builds Twisted Machinery. 03457_ System corrupted: Component data lost. 03482_ Dropped Med. Laser. 03483_ Acquired Mak. Hammer. 03500_ Acquired 15 matter. 03522_ System corrupted: Energy discharge (-58). 03578_ Acquired 11 matter. 03582_ Acquired 5 matter. 03586_ Acquired 14 matter. 03630_ Acquired 9 matter. 03693_ System corrupted: Matter fused (-6). Map ----- +----------------------------------------------------+ | ?????????????????????????????????????????????????? | | ?????????????????????????????????????????????????? | | ?????????????????????????????????????????????????? | | ?????????????????????????????????????????????????? | | ?????????????????????????????????????????????????? | | ?????????????????????????????????????????????????? | | ?????????????????????????????????????????????????? | | ?????????????????????????????????????????????????? | | ?????????????????????????????????????????????????? | | ?????????????????????????????????????????????????? | | ?????????????????????????????????????????????????? | | ????????????????????????????? ??????????????????? | | ?????????????????????????? #??????????????????? | | ????????????????????????? ???????????????????? | | ?????????????????????????" "?""?????????????????? | | ???????????????????????##" "?" ???????????????? | | #########??????????????#" "#? #?????????????? | | # # ###??????????### ##""""""#?????????????? | | ##?####???## #??????????????? | | ### ##### #####??????????? | | ### ## ## #??????????? | | #?##### """" #?????????? | | ????### """"" ?????????? | | ???## """""; ????????? | | ?# ## """"#; #???????????? | | ?## #?# ## @ " #???????????? | | ### #?# #### #### ?????????????? | | #??# #??#;; #????????????????? | | #??## ### #??## "" ??????????????? | | #?## ##?# #???# # R R " ??????????????? | | #### ##??? #???##### ?????????????? | | # # #???? ???????? ????????????? | | #???? #??????? # # ???????????? | | ## ##???? ##???????## ###? ???????????? | | ##### #?????# #???????????##???? ???????????? | | ##???######??????##??????????????????????????????? | | ?????????????????????????????????????????????????? | | ?????????????????????????????????????????????????? | | ?????????????????????????????????????????????????? | | ?????????????????????????????????????????????????? | | ?????????????????????????????????????????????????? | | ?????????????????????????????????????????????????? | | ?????????????????????????????????????????????????? | | ?????????????????????????????????????????????????? | | ?????????????????????????????????????????????????? | | ?????????????????????????????????????????????????? | | ?????????????????????????????????????????????????? | | ?????????????????????????????????????????????????? | | ?????????????????????????????????????????????????? | | ?????????????????????????????????????????????????? | +----------------------------------------------------+ Best States ------------- Heat Dissipation 35 Energy Generation 10 Energy Capacity 250 Matter Stores 300 Matter Capacity 300 Sight Range 16 Terrain Scan Density 10 Armor Coverage 225 Evasion (%) 44 Recoil Reduction 2 Item Schematics ----------------- Hcp. Storage Unit | -10/Materials | Hacked Robot Schematics ------------------ None Fabricated ------------ Nothing Repaired ---------- Nothing Alien Tech Used ----------------- None Achievements -------------- None Challenges ------------ None Game ------ Seed SiegePiercingRay Manual? 0 Play Time 00:30:53 Cumulative 102.4 hours Start 2025.05.29 @ 13:43:27 End 2025.05.29 @ 14:13:13 Sessions 1 Manual Loads 0 Difficulty Rogue Special Mode None Game No. 82 Rogue 82 Adventurer 0 Explorer 0 Win Type - Total 1 Types 1/0/0/0/0/0/0/0/0/0 Lore% 36 Gallery% 43 Achievement% 39 Wizard Run 0 Options --------- Layout 1 ASCII 0 Keyboard 0 Movement Mouse Keybinds 0 Fullscreen 1 Font 24/Smallcaps Map View 50x35 Zoom Use 0% Tactical HUD 1 Map Filters NONE Filters NONE Steam 1 RUN: b9b16e2d-56c7-44d5-9bc2-419e2a4e8608